[Event "FIDE World Senior-50 CC 2023"]
[Site "Terrasini"]
[Date "2023.10.29"]
[Round "5.7"]
[White "Boulard, Eric"]
[Black "Bischoff, Klaus"]
[Result "*"]
[ECO "A10"]
[WhiteElo "2181"]
[BlackElo "2473"]
[Annotator "RC"]
[PlyCount "58"]
[EventDate "2023.10.22"]
[EventType "swiss"]
[EventCountry "ITA"]
[SourceTitle "playchess.com"]
[Source "ChessBase"]
[SourceQuality "1"]
[TimeControl "40/5400+30:1800+30"]

1. c4 {[%emt 0:00:06]} g6 {[%emt 0:00:55]} 2. Nf3 {[%emt 0:00:13]} Bg7 {[%emt 1:30:35]} 3. g3 {[%emt 0:00:09]} d6 {[%emt 0:00:58]} 4. Bg2 {[%emt 0:00:20]} a6 {[%emt 0:01:08]} 5. O-O {[%emt 0:00:34]} c6 {[%emt 0:00:53]} 6. Nc3 {[%emt 0:04:18]} b5 {[%emt 1:29:24]} 7. d3 {[%emt 0:07:05]} Bb7 {[%emt 0:05:35]} 8. Qc2 {[%emt 0:08:40]} Nf6 {[%emt 0:03:37]} 9. a3 {[%emt 0:07:36]} O-O {[%emt 0:01:06]} 10. b3 {[%emt 0:07:08]} Nbd7 {[%emt 0:03:36]} 11. Bb2 {[%emt 0:01:48]} e5 {[%emt 0:02:56]} 12. e3 {[%emt 0:21:03]} d5 {[%emt 0:02:08]} 13. Rfd1 {[%emt 0:00:20]} Qe7 {[%emt 0:03:02]} 14. Rac1 {[%emt 0:05:41]} Rfe8 {[%emt 0:01:59]} 15. Qb1 {[%emt 0:10:10]} Rad8 {[%emt 0:05:34]} 16. cxb5 {[%emt 0:02:32]} cxb5 {[%emt 1:02:41]} 17. e4 {[%emt 0:07:10]} d4 {[%emt 0:01:26]} 18. Ne2 {[%emt 0:00:10]} Nc5 {[%emt 0:01:44]} 19. Nd2 {[%emt 0:14:57]} Bh6 {[%emt 0:01:47]} 20. b4 {[%emt 0:00:51]} Na4 {[%emt 0:00:14]} 21. Rc2 {[%emt 0:00:25]} Bc8 {[%emt 0:01:15]} 22. Nb3 {[%emt 0:00:24]} Be6 {[%emt 0:00:43]} 23. Nc5 {[%emt 0:00:15]} Nxc5 {[%emt 0:56:39]} 24. Rxc5 {[%emt 0:00:08]} Nd7 {[%emt 0:00:23]} 25. Rc6 {[%emt 0:00:37]} Nb8 {[%emt 0:56:29]} 26. Rc5 {[%emt 0:00:28]} f6 {[%emt 0:00:06]} 27. Bc1 {[%emt 0:00:22]} Bf8 {[%emt 0:00:50]} 28. Bd2 {[%emt 0:00:16]} Qd7 {[%emt 0:02:32]} 29. Rc2 {[%emt 0:02:34]} Rc8 {[%emt 0:02:11]} *

[Event "FIDE World Senior-50 CC 2023"]
[Site "Terrasini"]
[Date "2023.10.29"]
[Round "5.8"]
[White "Grant, Jonathan I M"]
[Black "Minasian, Artashes"]
[Result "0-1"]
[ECO "A36"]
[WhiteElo "2150"]
[BlackElo "2462"]
[Annotator "ChessBase"]
[PlyCount "108"]
[EventDate "2023.10.22"]
[EventType "swiss"]
[EventCountry "ITA"]
[SourceTitle "playchess.com"]
[Source "ChessBase"]
[SourceQuality "1"]
[TimeControl "40/5400+30:1800+30"]

1. c4 {[%emt 0:00:02]} g6 {[%emt 0:00:06]} 2. g3 {[%emt 0:00:30]} Bg7 {[%emt 0:00:10]} 3. Bg2 {[%emt 0:00:06]} c5 {[%emt 0:00:33]} 4. Nc3 {[%emt 0:00:09]} Nc6 {[%emt 0:00:05]} 5. d3 {[%emt 0:00:29]} d6 {[%emt 0:00:21]} 6. e4 {[%emt 0:01:04]} e6 {[%emt 0:01:16]} 7. h4 {[%emt 0:00:58]} h6 {[%emt 0:02:05]} 8. Nge2 {[%emt 0:01:55]} Nge7 {[%emt 0:00:32]} 9. Be3 {[%emt 0:01:34]} Nd4 {[%emt 0:01:31]} 10. Qd2 {[%emt 0:06:53]} Nec6 {[%emt 0:05:00]} 11. h5 {[%emt 0:22:00]} g5 {[%emt 0:00:24]} 12. f4 {[%emt 0:05:40]} g4 {[%emt 0:07:08]} 13. Rh4 {[%emt 0:17:30]} f5 {[%emt 0:04:49]} 14. exf5 {[%emt 0:01:56]} exf5 {[%emt 0:00:19]} 15. Bxd4 {[%emt 0:19:09]} cxd4 {[%emt 0:04:17]} 16. Nb5 {[%emt 0:03:01]} O-O {[%emt 0:00:07]} 17. Kf2 {[%emt 0:02:57]} Re8 {[%emt 0:05:46]} 18. Re1 {[%emt 0:02:48]} Be6 {[%emt 0:11:18]} 19. Nc1 {[%emt 0:01:11]} Bf7 {[%emt 0:16:46]} 20. Rxe8+ {[%emt 0:02:01]} Bxe8 {[%emt 0:00:05]} 21. Rh1 {[%emt 0:03:14]} a6 {[%emt 0:01:38]} 22. Na3 {[%emt 0:00:05]} Bf7 {[%emt 0:04:15]} 23. Nc2 {[%emt 0:00:44]} Qd7 {[%emt 0:02:00]} 24. Nb4 {[%emt 0:00:31]} Ne7 {[%emt 0:04:29]} 25. b3 {[%emt 0:02:09]} a5 {[%emt 0:00:32]} 26. Nc2 {[%emt 0:00:18]} Nc6 {[%emt 0:02:02]} 27. Na3 {[%emt 0:00:34]} Re8 {[%emt 0:04:28]} 28. Nb5 {[%emt 0:00:22]} b6 {[%emt 0:00:17]} 29. a3 {[%emt 0:01:37]} d5 {[%emt 0:06:06]} 30. Re1 {[%emt 0:01:17]} Rxe1 {[%emt 0:01:01]} 31. Qxe1 {[%emt 0:00:06]} Ne7 {[%emt 0:00:46]} 32. Qh1 {[%emt 0:02:36]} a4 {[%emt 0:01:09]} 33. Qf1 {[%emt 0:00:57]} axb3 {[%emt 0:02:01]} 34. Nxb3 {[%emt 0:00:13]} dxc4 {[%emt 0:00:09]} 35. dxc4 {[%emt 0:00:17]} d3 {[%emt 0:00:27]} 36. Qc1 {[%emt 0:00:54]} Bxh5 {[%emt 0:02:28]} 37. Qe3 {[%emt 0:00:15]} Bf7 {[%emt 0:00:53]} 38. Nd2 {[%emt 0:00:22]} h5 {[%emt 0:05:43]} 39. Bf1 {[%emt 0:00:51]} h4 {[%emt 0:00:39]} 40. gxh4 {[%emt 0:00:34]} Bf6 {[%emt 0:00:59]} 41. Qxd3 {[%emt 0:04:35]} Bxh4+ {[%emt 0:01:12]} 42. Kg1 {[%emt 0:05:09]} Qxd3 {[%emt 0:03:18]} 43. Bxd3 {[%emt 0:00:07]} Bg3 {[%emt 0:00:03]} 44. Nb3 {[%emt 0:10:59]} Bxf4 {[%emt 0:00:57]} 45. N5d4 {[%emt 0:01:15]} Bg6 {[%emt 0:03:45]} 46. Kf2 {[%emt 0:03:42]} Be5 {[%emt 0:03:37]} 47. Nb5 {[%emt 0:00:06]} Be8 {[%emt 0:00:45]} 48. a4 {[%emt 0:00:42]} Kg7 {[%emt 0:04:29]} 49. a5 {[%emt 0:01:03]} bxa5 {[%emt 0:00:35]} 50. Nxa5 {[%emt 0:00:08]} Kf6 {[%emt 0:00:32]} 51. Nb3 {[%emt 0:01:18]} Bc6 {[%emt 0:01:42]} 52. N3d4 {[%emt 0:02:01]} Bb7 {[%emt 0:01:58]} 53. Nb3 {[%emt 0:01:46]} g3+ {[%emt 0:00:46]} 54. Kg1 {[%emt 0:00:48]} Bf4 {[%emt 0:00:12]} 0-1

[Event "FIDE World Senior-50 CC 2023"]
[Site "Terrasini"]
[Date "2023.10.29"]
[Round "5.9"]
[White "Lima, Darcy"]
[Black "Dieu, Bruno"]
[Result "1-0"]
[ECO "D30"]
[WhiteElo "2416"]
[BlackElo "2221"]
[Annotator "ChessBase"]
[PlyCount "121"]
[EventDate "2023.10.22"]
[EventType "swiss"]
[EventCountry "ITA"]
[SourceTitle "playchess.com"]
[Source "ChessBase"]
[SourceQuality "1"]
[TimeControl "40/5400+30:1800+30"]

1. c4 {[%emt 0:00:01]} e6 {[%emt 0:00:28]} 2. g3 {[%emt 0:00:07]} d5 {[%emt 0:00:23]} 3. Bg2 {[%emt 0:00:06]} c5 {[%emt 0:00:38]} 4. Nf3 {[%emt 0:00:05]} Nc6 {[%emt 0:00:16]} 5. O-O {[%emt 0:00:27]} Nf6 {[%emt 0:00:23]} 6. b3 {[%emt 0:02:55]} Be7 {[%emt 0:04:01]} 7. cxd5 {[%emt 0:01:18]} exd5 {[%emt 0:00:05]} 8. d4 {[%emt 0:00:08]} O-O {[%emt 0:00:14]} 9. Bb2 {[%emt 0:00:07]} Ne4 {[%emt 0:01:17]} 10. Nc3 {[%emt 0:00:07]} Nxc3 {[%emt 0:10:04]} 11. Bxc3 {[%emt 0:00:07]} Re8 {[%emt 0:03:17]} 12. Qd2 {[%emt 0:01:38]} cxd4 {[%emt 0:05:50]} 13. Nxd4 {[%emt 0:00:36]} Bf6 {[%emt 0:02:06]} 14. e3 {[%emt 0:04:24]} Bg4 {[%emt 0:05:11]} 15. h3 {[%emt 0:05:11]} Be6 {[%emt 0:00:19]} 16. Nxc6 {[%emt 0:06:18]} bxc6 {[%emt 0:00:01]} 17. Bxf6 {[%emt 0:02:06]} Qxf6 {[%emt 0:00:14]} 18. Rac1 {[%emt 0:00:08]} Bf5 {[%emt 0:05:32]} 19. Qc3 {[%emt 0:02:20]} Qxc3 {[%emt 0:00:41]} 20. Rxc3 {[%emt 0:00:02]} Bd7 {[%emt 0:00:25]} 21. Rd1 {[%emt 0:00:46]} f5 {[%emt 0:02:24]} 22. Rd4 {[%emt 0:01:39]} Kf8 {[%emt 0:00:46]} 23. Rc5 {[%emt 0:05:21]} Ke7 {[%emt 0:05:53]} 24. Ra5 {[%emt 0:00:15]} Reb8 {[%emt 0:00:54]} 25. g4 {[%emt 0:02:38]} g6 {[%emt 0:07:12]} 26. g5 {[%emt 0:00:27]} Be6 {[%emt 0:00:59]} 27. Rh4 {[%emt 0:10:01]} Bg8 {[%emt 0:00:14]} 28. Rha4 {[%emt 0:00:14]} Rb7 {[%emt 0:00:11]} 29. Kf1 {[%emt 0:11:39]} Kd6 {[%emt 0:01:02]} 30. Ke2 {[%emt 0:00:39]} Be6 {[%emt 0:05:35]} 31. Kd2 {[%emt 0:04:40]} Bc8 {[%emt 0:05:36]} 32. Rd4 {[%emt 0:09:38]} Be6 {[%emt 0:03:22]} 33. Rda4 {[%emt 0:00:53]} Bc8 {[%emt 0:00:11]} 34. h4 {[%emt 0:02:14]} Re7 {[%emt 0:03:46]} 35. h5 {[%emt 0:04:29]} a6 {[%emt 0:05:10]} 36. Rh4 {[%emt 0:06:08]} Bb7 {[%emt 0:01:10]} 37. hxg6 {[%emt 0:02:12]} hxg6 {[%emt 0:00:01]} 38. Rh6 {[%emt 0:01:08]} Rg8 {[%emt 0:02:42]} 39. b4 {[%emt 0:00:35]} Kc7 {[%emt 0:05:28]} 40. Rc5 {[%emt 0:04:35]} Kb6 {[%emt 0:09:17]} 41. a4 {[%emt 0:30:50]} a5 {[%emt 0:09:27]} 42. Rxa5 {[%emt 0:00:00]} f4 {[%emt 0:00:03]} 43. Rc5 {[%emt 0:00:00]} fxe3+ {[%emt 0:00:22]} 44. fxe3 {[%emt 0:00:00]} Rf8 {[%emt 0:05:41]} 45. a5+ {[%emt 0:00:00]} Ka7 {[%emt 0:00:31]} 46. Rc2 {[%emt 0:00:00]} Bc8 {[%emt 0:14:57]} 47. Bh3 {[%emt 0:00:00]} Ba6 {[%emt 0:04:44]} 48. Rxg6 {[%emt 0:00:00]} Bc4 {[%emt 0:02:30]} 49. Rxc6 {[%emt 0:03:26]} Rf3 {[%emt 0:00:33]} 50. Be6 {[%emt 0:00:58]} Rh7 {[%emt 0:00:24]} 51. g6 {[%emt 0:01:33]} Rh2+ {[%emt 0:01:12]} 52. Kc1 {[%emt 0:00:12]} Rh1+ {[%emt 0:00:14]} 53. Kb2 {[%emt 0:00:29]} Rxe3 {[%emt 0:00:11]} 54. R6xc4 {[%emt 0:00:25]} dxc4 {[%emt 0:00:05]} 55. Bxc4 {[%emt 0:00:03]} Rg1 {[%emt 0:00:16]} 56. Bf7 {[%emt 0:00:24]} Ka6 {[%emt 0:00:01]} 57. Rc3 {[%emt 0:01:16]} Re5 {[%emt 0:00:52]} 58. Bc4+ {[%emt 0:03:09]} Kb7 {[%emt 0:00:20]} 59. Bd3 {[%emt 0:00:10]} Rg4 {[%emt 0:00:52]} 60. Kb3 {[%emt 0:00:26]} Rd5 {[%emt 0:00:22]} 61. Be2 {[%emt 0:01:47]} 1-0

[Event "FIDE World Senior-50 CC 2023"]
[Site "Terrasini"]
[Date "2023.10.29"]
[Round "5.10"]
[White "Mrva, Martin"]
[Black "Mussanti, Diego"]
[Result "1/2-1/2"]
[ECO "B80"]
[WhiteElo "2366"]
[BlackElo "2183"]
[Annotator "ChessBase"]
[PlyCount "95"]
[EventDate "2023.10.22"]
[EventType "swiss"]
[EventCountry "ITA"]
[SourceTitle "playchess.com"]
[Source "ChessBase"]
[SourceQuality "1"]
[TimeControl "40/5400+30:1800+30"]

1. e4 {[%emt 0:00:08]} c5 {[%emt 0:00:47]} 2. Nf3 {[%emt 0:03:11]} e6 {[%emt 0:00:11]} 3. d4 {[%emt 0:00:15]} cxd4 {[%emt 0:00:12]} 4. Nxd4 {[%emt 0:00:06]} Nc6 {[%emt 0:00:55]} 5. Nc3 {[%emt 0:00:29]} d6 {[%emt 0:00:28]} 6. Be3 {[%emt 0:00:32]} Nf6 {[%emt 0:01:09]} 7. f3 {[%emt 0:02:14]} Be7 {[%emt 0:00:37]} 8. Qd2 {[%emt 0:00:14]} a6 {[%emt 0:01:08]} 9. g4 {[%emt 0:04:11]} O-O {[%emt 0:00:20]} 10. O-O-O {[%emt 0:00:21]} Nxd4 {[%emt 0:00:17]} 11. Bxd4 {[%emt 0:00:25]} b5 {[%emt 0:00:11]} 12. g5 {[%emt 0:00:27]} Nd7 {[%emt 0:00:08]} 13. h4 {[%emt 0:00:14]} b4 {[%emt 0:06:58]} 14. Na4 {[%emt 0:00:52]} Qa5 {[%emt 0:02:25]} 15. b3 {[%emt 0:00:22]} Nc5 {[%emt 0:01:48]} 16. Nxc5 {[%emt 0:00:40]} dxc5 {[%emt 0:01:13]} 17. Bb2 {[%emt 0:00:48]} Rd8 {[%emt 0:02:16]} 18. Qf4 {[%emt 0:02:19]} Rxd1+ {[%emt 0:04:54]} 19. Kxd1 {[%emt 0:00:12]} Qxa2 {[%emt 0:02:15]} 20. Kc1 {[%emt 0:00:11]} Qa5 {[%emt 0:31:24]} 21. Bc4 {[%emt 0:02:10]} Bd7 {[%emt 0:00:13]} 22. Qe5 {[%emt 0:11:53]} Bf8 {[%emt 0:02:37]} 23. g6 {[%emt 0:05:17]} Re8 {[%emt 0:04:10]} 24. Rd1 {[%emt 0:12:55]} f6 {[%emt 0:08:50]} 25. Qh5 {[%emt 0:08:53]} hxg6 {[%emt 0:01:03]} 26. Qxg6 {[%emt 0:00:16]} Qc7 {[%emt 0:00:23]} 27. e5 {[%emt 0:03:07]} f5 {[%emt 0:07:51]} 28. h5 {[%emt 0:01:21]} Re7 {[%emt 0:03:53]} 29. Qxf5 {[%emt 0:08:08]} Qc8 {[%emt 0:02:52]} 30. Qd3 {[%emt 0:10:22]} Bb5 {[%emt 0:02:24]} 31. Bxb5 {[%emt 0:00:10]} axb5 {[%emt 0:00:06]} 32. Qxb5 {[%emt 0:00:06]} Rf7 {[%emt 0:00:06]} 33. Rg1 {[%emt 0:10:56]} Qa8 {[%emt 0:01:29]} 34. h6 {[%emt 0:05:14]} Qxf3 {[%emt 0:00:30]} 35. Kb1 {[%emt 0:00:13]} Qe3 {[%emt 0:01:45]} 36. Rh1 {[%emt 0:00:46]} Qf3 {[%emt 0:03:10]} 37. Rc1 {[%emt 0:02:31]} gxh6 {[%emt 0:00:52]} 38. Rg1+ {[%emt 0:00:06]} Kh7 {[%emt 0:01:41]} 39. Bc1 {[%emt 0:00:20]} Qf5 {[%emt 0:00:18]} 40. Qe8 {[%emt 0:01:26]} Bg7 {[%emt 0:02:55]} 41. Bb2 {[%emt 0:32:02]} c4 {[%emt 0:30:47]} 42. Qa4 {[%emt 0:00:00]} cxb3 {[%emt 0:00:00]} 43. Qxb3 {[%emt 0:00:00]} Bxe5 {[%emt 0:00:00]} 44. Bxe5 {[%emt 0:00:00]} Qxe5 {[%emt 0:00:00]} 45. Qd3+ {[%emt 0:00:00]} Qf5 {[%emt 0:00:00]} 46. Qg3 {[%emt 0:00:00]} Qg5 {[%emt 0:00:00]} 47. Qd3+ {[%emt 0:00:00]} Qf5 {[%emt 0:00:00]} 48. Qg3 {[%emt 0:00:00]} 1/2-1/2

[Event "FIDE World Senior-50 CC 2023"]
[Site "Terrasini"]
[Date "2023.10.29"]
[Round "5.11"]
[White "Nadanian, Ashot"]
[Black "Godena, Michele"]
[Result "0-1"]
[ECO "D02"]
[WhiteElo "2279"]
[BlackElo "2441"]
[Annotator "ChessBase"]
[PlyCount "82"]
[EventDate "2023.10.22"]
[EventType "swiss"]
[EventCountry "ITA"]
[SourceTitle "playchess.com"]
[Source "ChessBase"]
[SourceQuality "1"]
[TimeControl "40/5400+30:1800+30"]

1. d4 {[%emt 0:00:21]} d5 {[%emt 0:00:19]} 2. Nf3 {[%emt 0:00:26]} Nf6 {[%emt 0:00:17]} 3. Bf4 {[%emt 0:00:29]} e6 {[%emt 0:05:49]} 4. e3 {[%emt 0:00:53]} Bd6 {[%emt 0:00:41]} 5. Nbd2 {[%emt 0:03:01]} O-O {[%emt 0:21:38]} 6. Ne5 {[%emt 0:03:34]} c5 {[%emt 0:25:44]} 7. c3 {[%emt 0:01:36]} c4 {[%emt 0:00:38]} 8. h4 {[%emt 0:06:09]} Qc7 {[%emt 0:06:28]} 9. h5 {[%emt 0:12:36]} Nfd7 {[%emt 0:03:30]} 10. h6 {[%emt 0:02:26]} g6 {[%emt 0:00:05]} 11. Nxd7 {[%emt 0:01:32]} Nxd7 {[%emt 0:00:09]} 12. Bxd6 {[%emt 0:01:18]} Qxd6 {[%emt 0:00:03]} 13. f4 {[%emt 0:00:13]} b5 {[%emt 0:01:14]} 14. a3 {[%emt 0:07:54]} a5 {[%emt 0:03:12]} 15. Be2 {[%emt 0:02:00]} Bb7 {[%emt 0:00:40]} 16. O-O {[%emt 0:00:40]} Rfb8 {[%emt 0:07:23]} 17. Qe1 {[%emt 0:00:40]} b4 {[%emt 0:02:34]} 18. axb4 {[%emt 0:12:32]} axb4 {[%emt 0:00:04]} 19. Qh4 {[%emt 0:00:09]} Bc6 {[%emt 0:08:58]} 20. Nf3 {[%emt 0:02:25]} Rxa1 {[%emt 0:06:50]} 21. Rxa1 {[%emt 0:00:13]} bxc3 {[%emt 0:00:02]} 22. bxc3 {[%emt 0:00:12]} f6 {[%emt 0:00:15]} 23. Ra6 {[%emt 0:08:53]} Ra8 {[%emt 0:03:05]} 24. Rxa8+ {[%emt 0:01:18]} Bxa8 {[%emt 0:00:01]} 25. Ne5 {[%emt 0:00:19]} fxe5 {[%emt 0:02:25]} 26. Qd8+ {[%emt 0:00:11]} Kf7 {[%emt 0:00:04]} 27. f5 {[%emt 0:23:21]} exf5 {[%emt 0:00:58]} 28. Qxa8 {[%emt 0:00:20]} exd4 {[%emt 0:00:34]} 29. exd4 {[%emt 0:00:06]} Nf6 {[%emt 0:00:27]} 30. Bf3 {[%emt 0:00:12]} g5 {[%emt 0:00:44]} 31. Qb7+ {[%emt 0:00:45]} Ke6 {[%emt 0:00:04]} 32. Qc8+ {[%emt 0:01:40]} Qd7 {[%emt 0:00:05]} 33. Qh8 {[%emt 0:01:55]} g4 {[%emt 0:00:24]} 34. Bd1 {[%emt 0:00:05]} Qe8 {[%emt 0:00:57]} 35. Qg7 {[%emt 0:00:05]} Qg8 {[%emt 0:00:46]} 36. Qc7 {[%emt 0:00:36]} Qg5 {[%emt 0:00:21]} 37. Ba4 {[%emt 0:04:57]} Qc1+ {[%emt 0:00:17]} 38. Kh2 {[%emt 0:00:04]} Qxh6+ {[%emt 0:00:02]} 39. Kg1 {[%emt 0:00:04]} Qe3+ {[%emt 0:01:01]} 40. Kf1 {[%emt 0:00:36]} Qc1+ {[%emt 0:00:49]} 41. Ke2 {[%emt 0:30:05]} Qb2+ {[%emt 0:30:35]} 0-1

[Event "FIDE World Senior-50 CC 2023"]
[Site "Terrasini"]
[Date "2023.10.29"]
[Round "5.12"]
[White "Matamoros Franco, Carlos S."]
[Black "Jhunjhnuwala, Krishan"]
[Result "1-0"]
[ECO "A37"]
[WhiteElo "2455"]
[BlackElo "2268"]
[Annotator "ChessBase"]
[PlyCount "97"]
[EventDate "2023.10.22"]
[EventType "swiss"]
[EventCountry "ITA"]
[SourceTitle "playchess.com"]
[Source "ChessBase"]
[SourceQuality "1"]
[TimeControl "40/5400+30:1800+30"]

1. c4 {[%emt 0:00:07]} c5 {[%emt 0:00:08]} 2. g3 {[%emt 0:00:27]} g6 {[%emt 0:00:18]} 3. Bg2 {[%emt 0:00:05]} Bg7 {[%emt 0:00:08]} 4. Nc3 {[%emt 0:00:35]} Nc6 {[%emt 0:01:04]} 5. Nf3 {[%emt 0:01:30]} e5 {[%emt 0:01:23]} 6. a3 {[%emt 0:01:23]} a5 {[%emt 0:00:37]} 7. d3 {[%emt 0:11:56]} Nge7 {[%emt 0:01:07]} 8. Nd2 {[%emt 0:00:27]} O-O {[%emt 0:01:40]} 9. Nf1 {[%emt 0:00:26]} d6 {[%emt 0:01:56]} 10. Ne3 {[%emt 0:00:14]} Be6 {[%emt 0:10:43]} 11. Ned5 {[%emt 0:03:11]} Rb8 {[%emt 0:02:27]} 12. O-O {[%emt 0:12:08]} Qd7 {[%emt 0:05:10]} 13. Rb1 {[%emt 0:08:45]} b6 {[%emt 0:14:02]} 14. Qa4 {[%emt 0:02:56]} Bh3 {[%emt 0:06:16]} 15. Nxe7+ {[%emt 0:01:31]} Nxe7 {[%emt 0:00:10]} 16. Qxd7 {[%emt 0:00:06]} Bxd7 {[%emt 0:00:05]} 17. b4 {[%emt 0:00:16]} axb4 {[%emt 0:04:15]} 18. axb4 {[%emt 0:00:06]} Bc6 {[%emt 0:02:54]} 19. Bd2 {[%emt 0:03:28]} Bxg2 {[%emt 0:01:13]} 20. Kxg2 {[%emt 0:00:04]} f5 {[%emt 0:01:16]} 21. Bg5 {[%emt 0:11:23]} Nc6 {[%emt 0:05:58]} 22. Nd5 {[%emt 0:01:47]} Rfe8 {[%emt 0:05:14]} 23. b5 {[%emt 0:10:38]} Nd4 {[%emt 0:02:11]} 24. Ra1 {[%emt 0:07:42]} h6 {[%emt 0:03:09]} 25. Be7 {[%emt 0:01:59]} Rb7 {[%emt 0:03:49]} 26. Ra6 {[%emt 0:12:19]} Rexe7 {[%emt 0:05:34]} 27. Nxe7+ {[%emt 0:00:05]} Rxe7 {[%emt 0:00:06]} 28. Rxb6 {[%emt 0:00:16]} Nxe2 {[%emt 0:03:50]} 29. Rb8+ {[%emt 0:00:12]} Kf7 {[%emt 0:02:17]} 30. b6 {[%emt 0:04:06]} Nd4 {[%emt 0:01:34]} 31. b7 {[%emt 0:04:32]} Nc6 {[%emt 0:01:49]} 32. Rc8 {[%emt 0:00:04]} Rxb7 {[%emt 0:00:57]} 33. Rxc6 {[%emt 0:00:03]} Bf8 {[%emt 0:00:38]} 34. Ra1 {[%emt 0:00:22]} h5 {[%emt 0:01:26]} 35. Rca6 {[%emt 0:00:22]} Be7 {[%emt 0:01:39]} 36. Ra7 {[%emt 0:00:08]} Rb2 {[%emt 0:01:06]} 37. R1a2 {[%emt 0:02:09]} Rb3 {[%emt 0:00:26]} 38. R2a3 {[%emt 0:00:06]} Rb2 {[%emt 0:00:15]} 39. h4 {[%emt 0:00:41]} Ke6 {[%emt 0:00:33]} 40. Rc7 {[%emt 0:00:37]} f4 {[%emt 0:02:43]} 41. Ra8 {[%emt 0:30:20]} fxg3 {[%emt 0:32:01]} 42. Kxg3 {[%emt 0:00:09]} Bf6 {[%emt 0:00:00]} 43. Re8+ {[%emt 0:00:00]} Kf5 {[%emt 0:00:00]} 44. Rf7 {[%emt 0:00:00]} d5 {[%emt 0:00:00]} 45. cxd5 {[%emt 0:00:00]} Rb6 {[%emt 0:00:00]} 46. Rc8 {[%emt 0:00:00]} g5 {[%emt 0:00:00]} 47. Rc6 {[%emt 0:00:00]} gxh4+ {[%emt 0:00:00]} 48. Kh3 {[%emt 0:00:00]} Rxc6 {[%emt 0:00:00]} 49. dxc6 {[%emt 0:00:00]} 1-0

[Event "FIDE World Senior-50 CC 2023"]
[Site "Terrasini"]
[Date "2023.10.29"]
[Round "5.13"]
[White "Mohr, Georg"]
[Black "Plotkin, Victor"]
[Result "1/2-1/2"]
[ECO "C26"]
[WhiteElo "2430"]
[BlackElo "2229"]
[Annotator "ChessBase"]
[PlyCount "141"]
[EventDate "2023.10.22"]
[EventType "swiss"]
[EventCountry "ITA"]
[SourceTitle "playchess.com"]
[Source "ChessBase"]
[SourceQuality "1"]
[TimeControl "40/5400+30:1800+30"]

1. e4 {[%emt 0:01:12]} e5 {[%emt 0:00:05]} 2. Nf3 {[%emt 0:00:04]} Nf6 {[%emt 0:00:06]} 3. Nc3 {[%emt 0:00:05]} Nc6 {[%emt 0:00:06]} 4. g3 {[%emt 0:00:13]} Bc5 {[%emt 0:02:54]} 5. Bg2 {[%emt 0:00:06]} d6 {[%emt 0:02:09]} 6. d3 {[%emt 0:00:10]} a6 {[%emt 0:04:15]} 7. O-O {[%emt 0:00:06]} Be6 {[%emt 0:01:18]} 8. h3 {[%emt 0:00:34]} h6 {[%emt 0:01:07]} 9. Be3 {[%emt 0:00:30]} O-O {[%emt 0:09:57]} 10. d4 {[%emt 0:02:43]} exd4 {[%emt 0:00:40]} 11. Nxd4 {[%emt 0:00:01]} Nxd4 {[%emt 0:00:35]} 12. Bxd4 {[%emt 0:00:01]} Bxd4 {[%emt 0:15:03]} 13. Qxd4 {[%emt 0:01:13]} c5 {[%emt 0:00:59]} 14. Qe3 {[%emt 0:10:07]} Qb6 {[%emt 0:02:00]} 15. b3 {[%emt 0:00:28]} Rad8 {[%emt 0:01:07]} 16. Rfd1 {[%emt 0:06:16]} Rfe8 {[%emt 0:00:29]} 17. g4 {[%emt 0:06:51]} Qa5 {[%emt 0:04:15]} 18. Qg3 {[%emt 0:00:27]} b5 {[%emt 0:01:42]} 19. a3 {[%emt 0:09:33]} Bc8 {[%emt 0:05:52]} 20. Nd5 {[%emt 0:05:29]} Nxd5 {[%emt 0:03:55]} 21. Rxd5 {[%emt 0:03:10]} Bb7 {[%emt 0:07:12]} 22. Rxd6 {[%emt 0:00:35]} Bxe4 {[%emt 0:01:04]} 23. Rxd8 {[%emt 0:15:17]} Qxd8 {[%emt 0:00:46]} 24. Bxe4 {[%emt 0:00:10]} Rxe4 {[%emt 0:00:55]} 25. Qf3 {[%emt 0:00:03]} Qd5 {[%emt 0:08:39]} 26. Kg2 {[%emt 0:01:08]} Rd4 {[%emt 0:03:03]} 27. Re1 {[%emt 0:02:27]} Kf8 {[%emt 0:01:55]} 28. Re3 {[%emt 0:01:37]} Qxf3+ {[%emt 0:04:19]} 29. Kxf3 {[%emt 0:00:03]} c4 {[%emt 0:03:19]} 30. Re4 {[%emt 0:04:38]} Rd2 {[%emt 0:00:13]} 31. Re2 {[%emt 0:00:32]} Rd1 {[%emt 0:01:31]} 32. bxc4 {[%emt 0:01:33]} bxc4 {[%emt 0:00:01]} 33. Re3 {[%emt 0:00:37]} g5 {[%emt 0:15:29]} 34. Ke2 {[%emt 0:04:48]} Rd4 {[%emt 0:00:00]} 35. f3 {[%emt 0:00:32]} Rd5 {[%emt 0:00:00]} 36. a4 {[%emt 0:06:51]} Kg7 {[%emt 0:00:00]} 37. Rc3 {[%emt 0:07:59]} Rd4 {[%emt 0:00:00]} 38. Ke3 {[%emt 0:01:57]} Rf4 {[%emt 0:00:00]} 39. a5 {[%emt 0:00:16]} Kf6 {[%emt 0:00:00]} 40. Ra3 {[%emt 0:00:45]} Ke5 {[%emt 0:00:00]} 41. Ra4 {[%emt 0:38:45]} Kd5 {[%emt 0:25:26]} 42. c3 {[%emt 0:00:00]} Rf6 {[%emt 0:00:00]} 43. Rb4 {[%emt 0:00:00]} Kc5 {[%emt 0:00:00]} 44. Rb7 {[%emt 0:00:00]} Re6+ {[%emt 0:00:00]} 45. Kd2 {[%emt 0:00:00]} Rd6+ {[%emt 0:00:00]} 46. Ke2 {[%emt 0:00:00]} Rd3 {[%emt 0:00:00]} 47. Rb6 {[%emt 0:00:00]} Rxc3 {[%emt 0:00:00]} 48. Rxa6 {[%emt 0:00:00]} Ra3 {[%emt 0:00:00]} 49. Rxh6 {[%emt 0:00:00]} Rxa5 {[%emt 0:00:00]} 50. h4 {[%emt 0:00:00]} gxh4 {[%emt 0:00:00]} 51. Rxh4 {[%emt 0:00:00]} Kd4 {[%emt 0:00:00]} 52. g5+ {[%emt 0:00:00]} Kc3 {[%emt 0:00:00]} 53. Rf4 {[%emt 0:00:00]} Re5+ {[%emt 0:00:00]} 54. Kd1 {[%emt 0:00:00]} Rd5+ {[%emt 0:00:20]} 55. Ke2 {[%emt 0:00:00]} Rd7 {[%emt 0:01:39]} 56. Rf6 {[%emt 0:00:00]} Kb2 {[%emt 0:00:37]} 57. Rb6+ {[%emt 0:00:00]} Kc2 {[%emt 0:00:20]} 58. g6 {[%emt 0:00:00]} fxg6 {[%emt 0:01:00]} 59. Rxg6 {[%emt 0:00:00]} Re7+ {[%emt 0:00:16]} 60. Kf2 {[%emt 0:00:00]} c3 {[%emt 0:00:18]} 61. f4 {[%emt 0:03:42]} Rb7 {[%emt 0:01:32]} 62. Kf3 {[%emt 0:00:27]} Kb2 {[%emt 0:00:35]} 63. Ke4 {[%emt 0:00:29]} c2 {[%emt 0:00:16]} 64. Rc6 {[%emt 0:00:18]} c1=Q {[%emt 0:00:15]} 65. Rxc1 {[%emt 0:00:05]} Kxc1 {[%emt 0:00:04]} 66. f5 {[%emt 0:00:11]} Kd2 {[%emt 0:00:50]} 67. f6 {[%emt 0:00:17]} Kc3 {[%emt 0:03:57]} 68. Kd5 {[%emt 0:00:55]} Rb6 {[%emt 0:01:11]} 69. Ke5 {[%emt 0:00:06]} Kc4 {[%emt 0:00:17]} 70. f7 {[%emt 0:00:12]} Rb8 {[%emt 0:00:10]} 71. Ke6 {[%emt 0:00:08]} 1/2-1/2